[Event "*** Titled Tuesday Blitz"]
[Site "Chess.com"]
[Date "2021.04.20"]
[Round "1"]
[White "Igor_Lysyj"]
[Black "erdni1993"]
[Result "1-0"]
[WhiteElo "2781"]
[BlackElo "2420"]
[TimeControl "180+1"]
[EndTime "10:07:11 PDT"]
[Termination "Igor_Lysyj won by resignation"]

1. d4 {[%clk 0:03:00.9]} 1... Nf6 {[%clk 0:02:58.5]} 2. c4 {[%clk 0:02:59.3]}
2... e6 {[%clk 0:02:59.4]} 3. Nf3 {[%clk 0:02:58.3]} 3... c5 {[%clk 0:02:58.3]}
4. d5 {[%clk 0:02:56.4]} 4... exd5 {[%clk 0:02:58.4]} 5. cxd5 {[%clk 0:02:56.2]}
5... Bd6 {[%clk 0:02:58.8]} 6. Nc3 {[%clk 0:02:54.1]} 6... O-O {[%clk
0:02:55.7]} 7. e4 {[%clk 0:02:49.6]} 7... Re8 {[%clk 0:02:49.9]} 8. Bd3 {[%clk
0:02:48.3]} 8... h6 {[%clk 0:02:44.1]} 9. O-O {[%clk 0:02:46.8]} 9... Bc7 {[%clk
0:02:44.3]} 10. h3 {[%clk 0:02:45]} 10... d6 {[%clk 0:02:43.9]} 11. Bf4 {[%clk
0:02:44.2]} 11... a6 {[%clk 0:02:43]} 12. a4 {[%clk 0:02:43.1]} 12... Nbd7
{[%clk 0:02:43.5]} 13. Bh2 {[%clk 0:02:42.3]} 13... Rb8 {[%clk 0:02:41.8]} 14.
Re1 {[%clk 0:02:41.4]} 14... Ne5 {[%clk 0:02:32]} 15. Nxe5 {[%clk 0:02:37]}
15... dxe5 {[%clk 0:02:31.9]} 16. Bf1 {[%clk 0:02:36.3]} 16... Bd6 {[%clk
0:02:13.8]} 17. a5 {[%clk 0:02:34.4]} 17... b5 {[%clk 0:02:11.4]} 18. axb6
{[%clk 0:02:32.9]} 18... Qxb6 {[%clk 0:02:11.5]} 19. Ra2 {[%clk 0:02:29.2]}
19... c4 {[%clk 0:01:42.5]} 20. Bxc4 {[%clk 0:02:19.6]} 20... Bc5 {[%clk
0:01:42.7]} 21. Qe2 {[%clk 0:02:13]} 21... Bd4 {[%clk 0:01:38.3]} 22. Bg3 {[%clk
0:02:02.9]} 22... Qb4 {[%clk 0:01:31.5]} 23. Bxa6 {[%clk 0:01:50.4]} 23... Bxa6
{[%clk 0:01:25]} 24. Qxa6 {[%clk 0:01:27.5]} 24... Bxc3 {[%clk 0:01:20.2]} 25.
bxc3 {[%clk 0:01:26.8]} 25... Qxc3 {[%clk 0:01:21.1]} 26. Rae2 {[%clk
0:01:23.8]} 26... Rb2 {[%clk 0:01:13.7]} 27. Kh2 {[%clk 0:00:55.3]} 27... Rxe2
{[%clk 0:01:07.1]} 28. Qxe2 {[%clk 0:00:54.4]} 28... Rc8 {[%clk 0:00:54.4]} 29.
Rd1 {[%clk 0:00:52.5]} 29... Nd7 {[%clk 0:00:44.9]} 30. Qg4 {[%clk 0:00:50.4]}
30... Rc7 {[%clk 0:00:39.7]} 31. Rb1 {[%clk 0:00:45.6]} 31... g6 {[%clk
0:00:26.4]} 32. Qh4 {[%clk 0:00:30.7]} 32... Kg7 {[%clk 0:00:24.3]} 33. Qd8
{[%clk 0:00:26.3]} 33... Qc5 {[%clk 0:00:15.6]} 34. Ra1 {[%clk 0:00:22.9]} 34...
f6 {[%clk 0:00:05.2]} 35. Ra8 {[%clk 0:00:21.1]} 35... Nf8 {[%clk 0:00:06.1]}
36. d6 {[%clk 0:00:19.3]} 36... Rd7 {[%clk 0:00:06.3]} 37. Qxf8+ {[%clk
0:00:19]} 1-0

[Event "*** Titled Tuesday Blitz"]
[Site "Chess.com"]
[Date "2021.04.20"]
[Round "1"]
[White "Vesper2018"]
[Black "artichaud"]
[Result "1-0"]
[WhiteElo "2534"]
[BlackElo "2209"]
[TimeControl "180+1"]
[EndTime "10:07:11 PDT"]
[Termination "Vesper2018 won on time"]

1. e4 {[%clk 0:02:59.2]} 1... d5 {[%clk 0:02:59.8]} 2. exd5 {[%clk 0:02:59]}
2... Qxd5 {[%clk 0:02:59.8]} 3. Nc3 {[%clk 0:02:58.7]} 3... Qd6 {[%clk
0:03:00.2]} 4. d4 {[%clk 0:02:57.6]} 4... Nf6 {[%clk 0:03:00.5]} 5. Nf3 {[%clk
0:02:32.8]} 5... a6 {[%clk 0:03:00.1]} 6. Be2 {[%clk 0:02:28.6]} 6... Nc6 {[%clk
0:02:54.6]} 7. O-O {[%clk 0:02:21.8]} 7... Bg4 {[%clk 0:02:47.8]} 8. h3 {[%clk
0:02:09.5]} 8... Bxf3 {[%clk 0:02:31.7]} 9. Bxf3 {[%clk 0:02:09.2]} 9... O-O-O
{[%clk 0:02:31.9]} 10. Be3 {[%clk 0:01:56.8]} 10... Nxd4 {[%clk 0:02:27.6]} 11.
Bxd4 {[%clk 0:01:52.4]} 11... Qxd4 {[%clk 0:02:26.3]} 12. Bxb7+ {[%clk
0:01:29.5]} 12... Kxb7 {[%clk 0:02:01.8]} 13. Qf3+ {[%clk 0:01:30]} 13... c6
{[%clk 0:02:01.8]} 14. Rad1 {[%clk 0:01:12.7]} 14... Qb6 {[%clk 0:01:59.9]} 15.
Na4 {[%clk 0:01:12.1]} 15... Rxd1 {[%clk 0:01:23.5]} 16. Rxd1 {[%clk 0:01:01.7]}
16... Qc7 {[%clk 0:01:15.1]} 17. Nc5+ {[%clk 0:00:57.1]} 17... Ka7 {[%clk
0:00:49]} 18. Qe2 {[%clk 0:00:15.6]} 18... Qb6 {[%clk 0:00:38.7]} 19. Nd7 {[%clk
0:00:15.6]} 19... Qc7 {[%clk 0:00:16]} 20. Qe3+ {[%clk 0:00:13.6]} 20... Ka8
{[%clk 0:00:10.1]} 21. Nxf6 {[%clk 0:00:11.4]} 21... exf6 {[%clk 0:00:07.6]} 22.
Qe8+ {[%clk 0:00:10.8]} 22... Kb7 {[%clk 0:00:06.9]} 23. Rd7 {[%clk 0:00:09.1]}
23... Qxd7 {[%clk 0:00:04.3]} 24. Qxd7+ {[%clk 0:00:09.2]} 24... Kb6 {[%clk
0:00:04.5]} 25. Qd8+ {[%clk 0:00:09.4]} 25... Kb7 {[%clk 0:00:04.2]} 26. b4
{[%clk 0:00:08]} 26... g6 {[%clk 0:00:02.6]} 27. c4 {[%clk 0:00:07.9]} 27... Bg7
{[%clk 0:00:01.8]} 28. Qd7+ {[%clk 0:00:08.2]} 28... Kb6 {[%clk 0:00:01.1]} 29.
a4 {[%clk 0:00:07.9]} 1-0

[Event "*** Titled Tuesday Blitz"]
[Site "Chess.com"]
[Date "2021.04.20"]
[Round "1"]
[White "nocnypako"]
[Black "pirulillo"]
[Result "0-1"]
[WhiteElo "2516"]
[BlackElo "2219"]
[TimeControl "180+1"]
[EndTime "10:07:11 PDT"]
[Termination "pirulillo won on time"]

1. d4 {[%clk 0:03:00.9]} 1... Nf6 {[%clk 0:02:59.3]} 2. c4 {[%clk 0:03:00.6]}
2... g6 {[%clk 0:02:58.1]} 3. Nc3 {[%clk 0:03:00.5]} 3... Bg7 {[%clk 0:02:57]}
4. e4 {[%clk 0:02:59.9]} 4... d6 {[%clk 0:02:56.5]} 5. Nf3 {[%clk 0:02:59.5]}
5... O-O {[%clk 0:02:55.4]} 6. Be2 {[%clk 0:02:59.5]} 6... e5 {[%clk 0:02:54.2]}
7. O-O {[%clk 0:02:59.2]} 7... Nc6 {[%clk 0:02:53.5]} 8. d5 {[%clk 0:02:59]}
8... Ne7 {[%clk 0:02:53]} 9. Ne1 {[%clk 0:02:48]} 9... Nd7 {[%clk 0:02:46.4]}
10. Be3 {[%clk 0:02:47.2]} 10... f5 {[%clk 0:02:46.2]} 11. f3 {[%clk 0:02:46.9]}
11... f4 {[%clk 0:02:46.1]} 12. Bf2 {[%clk 0:02:46.8]} 12... g5 {[%clk 0:02:46]}
13. Rc1 {[%clk 0:02:45.1]} 13... Ng6 {[%clk 0:02:45.8]} 14. c5 {[%clk 0:02:45]}
14... Nxc5 {[%clk 0:02:43.2]} 15. b4 {[%clk 0:02:44.5]} 15... Na6 {[%clk
0:02:42.1]} 16. Nb5 {[%clk 0:02:42.2]} 16... b6 {[%clk 0:02:40.4]} 17. Qa4
{[%clk 0:02:14.2]} 17... Rf7 {[%clk 0:02:35.6]} 18. Nxd6 {[%clk 0:01:57.3]}
18... Qxd6 {[%clk 0:02:34.4]} 19. Bxa6 {[%clk 0:01:57.1]} 19... Bxa6 {[%clk
0:02:27.5]} 20. Qxa6 {[%clk 0:01:57.1]} 20... Bf8 {[%clk 0:01:46.1]} 21. Nd3
{[%clk 0:01:48.3]} 21... Qd8 {[%clk 0:01:37.5]} 22. Rc6 {[%clk 0:01:43.7]} 22...
Bd6 {[%clk 0:01:34.8]} 23. a3 {[%clk 0:01:19.8]} 23... Rg7 {[%clk 0:01:32.7]}
24. Nb2 {[%clk 0:00:57.3]} 24... Ne7 {[%clk 0:01:18.4]} 25. Rc3 {[%clk
0:00:57.3]} 25... Qd7 {[%clk 0:00:54.2]} 26. Nc4 {[%clk 0:00:51]} 26... h5
{[%clk 0:00:51]} 27. Nxd6 {[%clk 0:00:40.6]} 27... Qxd6 {[%clk 0:00:51.9]} 28.
Rfc1 {[%clk 0:00:38]} 28... g4 {[%clk 0:00:41]} 29. Qb7 {[%clk 0:00:28.6]} 29...
Rf8 {[%clk 0:00:36.7]} 30. fxg4 {[%clk 0:00:15.8]} 30... Qg6 {[%clk 0:00:33.9]}
31. Rxc7 {[%clk 0:00:05.2]} 31... Qxg4 {[%clk 0:00:33.3]} 32. g3 {[%clk
0:00:04.8]} 32... fxg3 {[%clk 0:00:26.8]} 33. Bxg3 {[%clk 0:00:04.8]} 33... h4
{[%clk 0:00:25.8]} 34. Rxe7 {[%clk 0:00:04.7]} 34... Rg6 {[%clk 0:00:24.5]} 35.
Re6 {[%clk 0:00:03.2]} 35... hxg3 {[%clk 0:00:23.5]} 36. Rxg6+ {[%clk
0:00:02.3]} 36... Qxg6 {[%clk 0:00:24.4]} 0-1

[Event "*** Titled Tuesday Blitz"]
[Site "Chess.com"]
[Date "2021.04.20"]
[Round "1"]
[White "eduardoperalta"]
[Black "Azerichess"]
[Result "1/2-1/2"]
[WhiteElo "2478"]
[BlackElo "2998"]
[TimeControl "180+1"]
[EndTime "10:07:13 PDT"]
[Termination "Game drawn by repetition"]

1. d4 {[%clk 0:02:59.7]} 1... Nf6 {[%clk 0:02:58.7]} 2. c4 {[%clk 0:02:59.4]}
2... g6 {[%clk 0:02:59]} 3. Nc3 {[%clk 0:02:59.1]} 3... d5 {[%clk 0:02:59.4]} 4.
Nf3 {[%clk 0:02:58.4]} 4... Bg7 {[%clk 0:02:58.9]} 5. cxd5 {[%clk 0:02:57.9]}
5... Nxd5 {[%clk 0:02:59.8]} 6. e4 {[%clk 0:02:58.4]} 6... Nxc3 {[%clk
0:02:58.2]} 7. bxc3 {[%clk 0:02:59.3]} 7... O-O {[%clk 0:02:58.5]} 8. Rb1 {[%clk
0:02:57]} 8... c5 {[%clk 0:02:57.9]} 9. Be2 {[%clk 0:02:56.4]} 9... Qc7 {[%clk
0:02:57.7]} 10. O-O {[%clk 0:02:55.7]} 10... Rd8 {[%clk 0:02:58.4]} 11. Be3
{[%clk 0:02:53.8]} 11... b6 {[%clk 0:02:56.6]} 12. Qd2 {[%clk 0:02:48.6]} 12...
Ba6 {[%clk 0:02:46.2]} 13. Rfd1 {[%clk 0:02:46.3]} 13... Bxe2 {[%clk 0:02:43.3]}
14. Qxe2 {[%clk 0:02:47.2]} 14... Nd7 {[%clk 0:02:43.8]} 15. e5 {[%clk
0:02:38.7]} 15... Rac8 {[%clk 0:02:41.3]} 16. h4 {[%clk 0:02:31.8]} 16... Nf8
{[%clk 0:02:35.7]} 17. h5 {[%clk 0:02:31.2]} 17... cxd4 {[%clk 0:02:31.9]} 18.
cxd4 {[%clk 0:02:30.3]} 18... Qc2 {[%clk 0:02:07.6]} 19. Qa6 {[%clk 0:02:25.3]}
19... Qc7 {[%clk 0:01:50.6]} 20. hxg6 {[%clk 0:02:20.3]} 20... hxg6 {[%clk
0:01:49.4]} 21. a4 {[%clk 0:02:00.5]} 21... Ne6 {[%clk 0:01:42.6]} 22. a5 {[%clk
0:01:58.3]} 22... bxa5 {[%clk 0:01:29.7]} 23. Rb7 {[%clk 0:01:57.1]} 23... Qc2
{[%clk 0:01:29]} 24. Rc1 {[%clk 0:01:51.2]} 24... Qf5 {[%clk 0:00:57.6]} 25.
Rxc8 {[%clk 0:01:49.8]} 25... Rxc8 {[%clk 0:00:58.5]} 26. Rxe7 {[%clk
0:01:49.6]} 26... Rb8 {[%clk 0:00:56]} 27. Rb7 {[%clk 0:01:45.4]} 27... Rxb7
{[%clk 0:00:48.6]} 28. Qxb7 {[%clk 0:01:46.3]} 28... a4 {[%clk 0:00:47.5]} 29.
Qxa7 {[%clk 0:01:33.9]} 29... Qc2 {[%clk 0:00:41.4]} 30. Qa8+ {[%clk 0:01:19.2]}
30... Bf8 {[%clk 0:00:40]} 31. d5 {[%clk 0:01:17.8]} 31... Nc7 {[%clk
0:00:38.5]} 32. Qc8 {[%clk 0:00:57.9]} 32... Qd1+ {[%clk 0:00:28.8]} 33. Kh2
{[%clk 0:00:57.1]} 33... Qxd5 {[%clk 0:00:28.9]} 34. Qxc7 {[%clk 0:00:56]} 34...
a3 {[%clk 0:00:29.4]} 35. Bd4 {[%clk 0:00:54.7]} 35... a2 {[%clk 0:00:27.8]} 36.
Qc3 {[%clk 0:00:52]} 36... Bh6 {[%clk 0:00:26.6]} 37. g3 {[%clk 0:00:49.4]}
37... a1=Q {[%clk 0:00:24.9]} 38. Qxa1 {[%clk 0:00:46.1]} 38... Qxf3 {[%clk
0:00:25]} 39. Qc3 {[%clk 0:00:43.6]} 39... Qd5 {[%clk 0:00:23.7]} 40. Qc8+
{[%clk 0:00:40.2]} 40... Kh7 {[%clk 0:00:21]} 41. Qg4 {[%clk 0:00:37.8]} 41...
Bg7 {[%clk 0:00:20.2]} 42. Qh4+ {[%clk 0:00:37]} 42... Kg8 {[%clk 0:00:20.7]}
43. Qf4 {[%clk 0:00:35.9]} 43... Qe6 {[%clk 0:00:19.8]} 44. Qe3 {[%clk
0:00:32.6]} 44... Qd5 {[%clk 0:00:20.2]} 45. Qf4 {[%clk 0:00:32.5]} 45... Qe6
{[%clk 0:00:20.8]} 46. Qe3 {[%clk 0:00:32.6]} 46... Qf5 {[%clk 0:00:20.5]} 47.
Qf4 {[%clk 0:00:31.7]} 47... Qd7 {[%clk 0:00:19.1]} 48. Qe3 {[%clk 0:00:31.1]}
48... Qd5 {[%clk 0:00:19.7]} 49. Qf4 {[%clk 0:00:31]} 1/2-1/2

[Event "*** Titled Tuesday Blitz"]
[Site "Chess.com"]
[Date "2021.04.20"]
[Round "1"]
[White "agartha01"]
[Black "LenkaPtacnikova"]
[Result "1-0"]
[WhiteElo "2516"]
[BlackElo "2178"]
[TimeControl "180+1"]
[EndTime "10:07:13 PDT"]
[Termination "agartha01 won by resignation"]

1. c4 {[%clk 0:03:00]} 1... e5 {[%clk 0:02:49.6]} 2. Nc3 {[%clk 0:02:59.7]} 2...
Nf6 {[%clk 0:02:47.9]} 3. g3 {[%clk 0:02:59.8]} 3... d5 {[%clk 0:02:47.6]} 4.
cxd5 {[%clk 0:03:00.7]} 4... Nxd5 {[%clk 0:02:47.4]} 5. Bg2 {[%clk 0:03:01.1]}
5... Nb6 {[%clk 0:02:47.6]} 6. Nf3 {[%clk 0:02:59.6]} 6... Nc6 {[%clk
0:02:46.3]} 7. O-O {[%clk 0:02:59.8]} 7... Be7 {[%clk 0:02:44.2]} 8. d3 {[%clk
0:02:59.8]} 8... O-O {[%clk 0:02:43.6]} 9. Bd2 {[%clk 0:02:58.9]} 9... a5 {[%clk
0:02:38.3]} 10. Rc1 {[%clk 0:02:57.3]} 10... Be6 {[%clk 0:02:37.3]} 11. a3
{[%clk 0:02:40.4]} 11... f6 {[%clk 0:02:30.3]} 12. Na4 {[%clk 0:02:32.7]} 12...
Nxa4 {[%clk 0:02:21.1]} 13. Qxa4 {[%clk 0:02:33.6]} 13... Bd5 {[%clk 0:02:06.6]}
14. Bc3 {[%clk 0:02:30.3]} 14... Bc5 {[%clk 0:01:50.8]} 15. Qb5 {[%clk
0:01:59.6]} 15... Bb6 {[%clk 0:01:49]} 16. Nd2 {[%clk 0:01:56.5]} 16... Bxg2
{[%clk 0:01:45.1]} 17. Kxg2 {[%clk 0:01:57.4]} 17... Nd4 {[%clk 0:01:36.9]} 18.
Bxd4 {[%clk 0:01:52.7]} 18... Qxd4 {[%clk 0:01:28.3]} 19. Qc4+ {[%clk
0:01:51.5]} 19... Qxc4 {[%clk 0:01:28.4]} 20. Nxc4 {[%clk 0:01:52.4]} 20... Bd4
{[%clk 0:01:14.5]} 21. e3 {[%clk 0:01:51.9]} 21... Bb6 {[%clk 0:01:09.6]} 22.
Nxb6 {[%clk 0:01:51.9]} 22... cxb6 {[%clk 0:01:09.4]} 23. Rc7 {[%clk 0:01:48.6]}
23... Rf7 {[%clk 0:01:09.3]} 24. Rfc1 {[%clk 0:01:48.1]} 24... Re8 {[%clk
0:01:06.6]} 25. Kf3 {[%clk 0:01:28.8]} 25... Rfe7 {[%clk 0:01:03]} 26. Ke4
{[%clk 0:01:21.3]} 26... Kf7 {[%clk 0:01:02.6]} 27. Rxe7+ {[%clk 0:01:21]} 27...
Rxe7 {[%clk 0:01:01.8]} 28. g4 {[%clk 0:01:13.4]} 28... g6 {[%clk 0:00:57.7]}
29. Rc3 {[%clk 0:00:57.6]} 29... Ke6 {[%clk 0:00:57.2]} 30. Rb3 {[%clk
0:00:57.2]} 30... f5+ {[%clk 0:00:55.1]} 31. gxf5+ {[%clk 0:00:56.3]} 31...
gxf5+ {[%clk 0:00:54.4]} 32. Kf3 {[%clk 0:00:56.9]} 32... Kd5 {[%clk 0:00:53.8]}
33. Rxb6 {[%clk 0:00:55.4]} 33... e4+ {[%clk 0:00:49.9]} 34. dxe4+ {[%clk
0:00:51.7]} 34... fxe4+ {[%clk 0:00:50]} 35. Ke2 {[%clk 0:00:52.2]} 35... Kc5
{[%clk 0:00:47.7]} 36. Rb3 {[%clk 0:00:43.6]} 36... b5 {[%clk 0:00:40.7]} 37.
Rc3+ {[%clk 0:00:42.3]} 37... Kd5 {[%clk 0:00:40.7]} 38. b4 {[%clk 0:00:39.6]}
38... axb4 {[%clk 0:00:27.3]} 39. axb4 {[%clk 0:00:40.5]} 39... Rb7 {[%clk
0:00:26]} 40. Rc5+ {[%clk 0:00:38.9]} 40... Kd6 {[%clk 0:00:26.1]} 41. Rh5
{[%clk 0:00:35.8]} 41... Ke6 {[%clk 0:00:23.5]} 42. Kd2 {[%clk 0:00:30.2]} 42...
Rd7+ {[%clk 0:00:16.5]} 43. Kc3 {[%clk 0:00:29.7]} 43... Rd3+ {[%clk 0:00:16.3]}
44. Kc2 {[%clk 0:00:29.5]} 1-0

[Event "*** Titled Tuesday Blitz"]
[Site "Chess.com"]
[Date "2021.04.20"]
[Round "1"]
[White "Firouzja2003"]
[Black "djano"]
[Result "1-0"]
[WhiteElo "3139"]
[BlackElo "2472"]
[TimeControl "180+1"]
[EndTime "10:07:15 PDT"]
[Termination "Firouzja2003 won by resignation"]

1. d4 {[%clk 0:02:56.1]} 1... Nf6 {[%clk 0:02:58.1]} 2. Bg5 {[%clk 0:02:56.5]}
2... d5 {[%clk 0:02:52.7]} 3. Bxf6 {[%clk 0:02:53.9]} 3... exf6 {[%clk
0:02:53.6]} 4. e3 {[%clk 0:02:53.6]} 4... Bd6 {[%clk 0:02:48.8]} 5. Bd3 {[%clk
0:02:52.2]} 5... c6 {[%clk 0:02:49.1]} 6. Nd2 {[%clk 0:02:48.1]} 6... f5 {[%clk
0:02:47.7]} 7. c3 {[%clk 0:02:47.2]} 7... Qe7 {[%clk 0:02:41.3]} 8. Ne2 {[%clk
0:02:46.2]} 8... g6 {[%clk 0:02:39.6]} 9. Qc1 {[%clk 0:02:45.3]} 9... Nd7 {[%clk
0:02:36.4]} 10. c4 {[%clk 0:02:43.2]} 10... Nf6 {[%clk 0:02:33.7]} 11. O-O
{[%clk 0:02:41.9]} 11... O-O {[%clk 0:02:18.7]} 12. h3 {[%clk 0:02:38]} 12...
Bd7 {[%clk 0:02:15]} 13. Rb1 {[%clk 0:02:36.1]} 13... a5 {[%clk 0:02:14.4]} 14.
Qc2 {[%clk 0:02:34.9]} 14... Kg7 {[%clk 0:02:03.5]} 15. Nf3 {[%clk 0:02:33.5]}
15... Ne4 {[%clk 0:01:55.4]} 16. b3 {[%clk 0:02:33.3]} 16... f6 {[%clk
0:01:49.3]} 17. Rfe1 {[%clk 0:02:20.7]} 17... Rae8 {[%clk 0:01:46.1]} 18. Nf4
{[%clk 0:02:18.3]} 18... Qf7 {[%clk 0:01:35.4]} 19. h4 {[%clk 0:02:14.1]} 19...
h5 {[%clk 0:01:26.1]} 20. c5 {[%clk 0:02:09.3]} 20... Bc7 {[%clk 0:01:19.8]} 21.
g3 {[%clk 0:02:08.3]} 21... Re7 {[%clk 0:01:11.9]} 22. Ng2 {[%clk 0:02:00.5]}
22... Ra8 {[%clk 0:01:08.2]} 23. a3 {[%clk 0:01:59.6]} 23... Qe8 {[%clk
0:01:06.1]} 24. b4 {[%clk 0:01:58.6]} 24... axb4 {[%clk 0:01:07]} 25. axb4
{[%clk 0:01:58.5]} 25... Ra3 {[%clk 0:01:05]} 26. Ra1 {[%clk 0:01:56.6]} 26...
Qa8 {[%clk 0:01:04.8]} 27. Qb2 {[%clk 0:01:56]} 27... Rxa1 {[%clk 0:00:55.5]}
28. Rxa1 {[%clk 0:01:56.9]} 28... Qc8 {[%clk 0:00:53.3]} 29. b5 {[%clk
0:01:53.2]} 29... cxb5 {[%clk 0:00:46.1]} 30. Bxb5 {[%clk 0:01:49.9]} 30... Bc6
{[%clk 0:00:46.3]} 31. Bxc6 {[%clk 0:01:43.3]} 31... bxc6 {[%clk 0:00:47.2]} 32.
Ra7 {[%clk 0:01:41.1]} 32... Bd8 {[%clk 0:00:46.9]} 33. Rxe7+ {[%clk 0:01:37.8]}
33... Bxe7 {[%clk 0:00:47.8]} 34. Nf4 {[%clk 0:01:37.7]} 34... Bd8 {[%clk
0:00:34.7]} 35. Qa2 {[%clk 0:01:35.2]} 35... Kf7 {[%clk 0:00:25.2]} 36. Nd3
{[%clk 0:01:29.1]} 36... Qb7 {[%clk 0:00:21.7]} 37. Kg2 {[%clk 0:01:28.3]} 37...
Bc7 {[%clk 0:00:22]} 38. Qa4 {[%clk 0:01:25.2]} 38... Nc3 {[%clk 0:00:17.9]} 39.
Qb4 {[%clk 0:01:18.3]} 39... Nb5 {[%clk 0:00:16.9]} 40. Qb3 {[%clk 0:01:08.8]}
40... Qa6 {[%clk 0:00:16.4]} 41. Nb4 {[%clk 0:01:08.4]} 41... Qa8 {[%clk
0:00:16.7]} 42. Nxd5 {[%clk 0:01:06.7]} 42... cxd5 {[%clk 0:00:08.6]} 43. Qxb5
{[%clk 0:01:06.1]} 43... Ke7 {[%clk 0:00:06.7]} 44. c6 {[%clk 0:01:04.9]} 44...
Bd6 {[%clk 0:00:06]} 45. Qxd5 {[%clk 0:01:04]} 45... Qc8 {[%clk 0:00:06.6]} 46.
Qc4 {[%clk 0:01:02.7]} 46... Qe6 {[%clk 0:00:04.5]} 47. d5 {[%clk 0:00:58.9]}
47... Qe4 {[%clk 0:00:04.7]} 48. Qxe4+ {[%clk 0:00:55.7]} 48... fxe4 {[%clk
0:00:05.6]} 49. Nd4 {[%clk 0:00:56]} 49... f5 {[%clk 0:00:06.2]} 50. Nb5 {[%clk
0:00:56.2]} 1-0

[Event "*** Titled Tuesday Blitz"]
[Site "Chess.com"]
[Date "2021.04.20"]
[Round "1"]
[White "Redzishchess"]
[Black "adnan_nn"]
[Result "0-1"]
[WhiteElo "2365"]
[BlackElo "2665"]
[TimeControl "180+1"]
[EndTime "10:07:15 PDT"]
[Termination "adnan_nn won by resignation"]

1. f4 {[%clk 0:02:59.9]} 1... d5 {[%clk 0:02:58.5]} 2. Nf3 {[%clk 0:03:00.2]}
2... c5 {[%clk 0:02:58.5]} 3. e3 {[%clk 0:03:01.1]} 3... Nc6 {[%clk 0:02:58]} 4.
Bb5 {[%clk 0:03:01.8]} 4... Bd7 {[%clk 0:02:56.3]} 5. O-O {[%clk 0:03:02.1]}
5... g6 {[%clk 0:02:57]} 6. Nc3 {[%clk 0:02:58.7]} 6... Nf6 {[%clk 0:02:57]} 7.
b3 {[%clk 0:02:58.6]} 7... Bg7 {[%clk 0:02:56.9]} 8. Bb2 {[%clk 0:02:59]} 8...
O-O {[%clk 0:02:56.8]} 9. d3 {[%clk 0:02:57.4]} 9... Nb8 {[%clk 0:02:56.1]} 10.
Bxd7 {[%clk 0:02:57]} 10... Qxd7 {[%clk 0:02:55.1]} 11. Ne5 {[%clk 0:02:52.8]}
11... Qc7 {[%clk 0:02:48.9]} 12. e4 {[%clk 0:02:50.3]} 12... e6 {[%clk
0:02:43.9]} 13. Qf3 {[%clk 0:02:22.5]} 13... Nc6 {[%clk 0:02:39.5]} 14. Nxc6
{[%clk 0:02:22.7]} 14... Qxc6 {[%clk 0:02:36.4]} 15. e5 {[%clk 0:02:17.3]} 15...
Nd7 {[%clk 0:02:33.6]} 16. Ne2 {[%clk 0:02:05.9]} 16... b5 {[%clk 0:02:31.1]}
17. a4 {[%clk 0:02:05.7]} 17... a6 {[%clk 0:02:30.6]} 18. h4 {[%clk 0:01:44]}
18... h5 {[%clk 0:02:25.5]} 19. Kh2 {[%clk 0:01:42.9]} 19... f6 {[%clk
0:02:15.1]} 20. exf6 {[%clk 0:01:41.4]} 20... Bxf6 {[%clk 0:02:15.4]} 21. Bxf6
{[%clk 0:01:39.7]} 21... Nxf6 {[%clk 0:02:15.7]} 22. g3 {[%clk 0:01:26.1]} 22...
Ng4+ {[%clk 0:02:09.2]} 23. Kh1 {[%clk 0:01:26.6]} 23... b4 {[%clk 0:02:03.9]}
24. Ng1 {[%clk 0:01:21.8]} 24... e5 {[%clk 0:01:58.2]} 25. Nh3 {[%clk
0:01:21.3]} 25... e4 {[%clk 0:01:52.7]} 26. dxe4 {[%clk 0:01:05.9]} 26... dxe4
{[%clk 0:01:53.6]} 27. Qe2 {[%clk 0:01:05.9]} 27... e3+ {[%clk 0:01:49.2]} 28.
Kg1 {[%clk 0:01:04.7]} 28... Rad8 {[%clk 0:01:44.4]} 29. Rad1 {[%clk 0:01:04.8]}
29... Rd4 {[%clk 0:01:39.5]} 30. Rd3 {[%clk 0:00:38.3]} 30... Rfd8 {[%clk
0:01:34.8]} 31. Rfd1 {[%clk 0:00:37.9]} 31... Qe4 {[%clk 0:01:20.1]} 32. Ng5
{[%clk 0:00:31.9]} 32... Qd5 {[%clk 0:01:13.3]} 33. Nh3 {[%clk 0:00:19.4]} 33...
Kg7 {[%clk 0:00:54.3]} 34. Ng5 {[%clk 0:00:10.6]} 34... Qf5 {[%clk 0:00:47.3]}
35. Rxd4 {[%clk 0:00:09]} 35... cxd4 {[%clk 0:00:45.3]} 36. Qd3 {[%clk
0:00:07.1]} 36... Qxd3 {[%clk 0:00:38.5]} 37. Rxd3 {[%clk 0:00:08]} 37... Kf6
{[%clk 0:00:35.8]} 38. Kf1 {[%clk 0:00:07]} 38... Nf2 {[%clk 0:00:32.5]} 0-1